fUST/lending_fUST_20250724
["ID","MTS","AMOUNT","RATE_DAILY","PERIOD"]
[374400872,1753288247749,-460.0,0.00022739,2]
[374400874,1753288247758,-985.12,0.00022739,2]
[374400876,1753288247768,-969.61,0.00022739,2]
[374400878,1753288247777,-460.0,0.00022739,2]
[374400880,1753288247786,-679.58,0.00022739,2]
[374400882,1753288247795,-546.07,0.00022739,2]
[374400884,1753288247804,-758.35,0.00022739,2]
[374400886,1753288247814,-557.76,0.00022739,2]
[374400888,1753288247823,-460.0,0.00022739,2]
[374400890,1753288247832,-1096.99,0.00022739,2]
[374400892,1753288247842,-4434.18,0.00022739,2]
[374400894,1753288247852,-3588.5,0.00022739,2]
[374400896,1753288247862,-1211.42,0.00022739,2]
[374400898,1753288247871,-575.0,0.0002274,2]
[374400900,1753288247881,-500.0,0.0002274,2]
[374400902,1753288247890,-349.0,0.00022754,2]
[374400904,1753288247900,-560.0,0.00022792,2]
[374400906,1753288247909,-500.0,0.00022873,2]
[374400908,1753288247919,-500.0,0.00022873,2]
[374400910,1753288247931,-500.94168668,0.00022873,2]
[374400912,1753288247940,-500.0,0.00022873,2]
[374400914,1753288247949,-156.64231511,0.00022873,2]
[374400916,1753288247959,-500.0,0.00022873,2]
[374400918,1753288247968,-500.0,0.00022873,2]
[374400920,1753288247977,-500.0,0.00022873,2]
[374400922,1753288247987,-500.0,0.00022873,2]
[374400923,1753288247996,-500.0,0.00022873,2]
[374400925,1753288248006,-500.0,0.00022873,2]
[374400927,1753288248015,-500.0,0.00022873,2]
[374400929,1753288248025,-500.0,0.00022873,2]
[374400931,1753288248034,-500.0,0.00022873,2]
[374400933,1753288248044,-501.11731388,0.00022873,2]
[374400935,1753288248054,-500.0,0.00022873,2]
[374400937,1753288248063,-1211.0,0.00022882,2]
[374400939,1753288248073,-352909.74176193,0.000229,2]
[374400941,1753288248082,-151.0,0.000229,7]
[374400943,1753288248090,-238.571994,0.000229,7]
[374400945,1753288248100,-39436.15,0.000229,2]
[374400947,1753288248109,-151.0,0.000229,7]
[374400949,1753288248119,-151.0,0.000229,7]
[374400951,1753288248128,-224.874054,0.000229,7]
[374400953,1753288248138,-238.963048,0.000229,7]
[374400955,1753288248148,-151.0,0.000229,2]
[374400957,1753288248158,-238.963048,0.000229,7]
[374400959,1753288248169,-151.0,0.000229,2]
[374400961,1753288248181,-159.186887,0.000229,7]
[374400963,1753288248190,-159.186887,0.000229,7]
[374400965,1753288248199,-151.0,0.000229,7]
[374400967,1753288248210,-225.056074,0.000229,7]
[374400969,1753288248220,-372.691336,0.000229,7]
[374400971,1753288248230,-372.691336,0.000229,7]
[374400973,1753288248240,-151.0,0.000229,7]
[374400975,1753288248249,-151.0,0.000229,7]
[374400977,1753288248259,-151.0,0.000229,7]
[374400979,1753288248268,-151.0,0.000229,7]
[374400981,1753288248278,-885.42337318,0.000229,2]
[374400983,1753288248287,-151.0,0.000229,7]
[374400985,1753288248297,-151.0,0.000229,7]
[374400987,1753288248306,-151.0,0.000229,7]
[374400989,1753288248316,-151.0,0.000229,7]
[374400991,1753288248326,-12176.83,0.000229,7]
[374400992,1753288248336,-381099.36476189,0.000229,7]
[374400994,1753288248345,-476.696448,0.000229,7]
[374400996,1753288248355,-12622.36869388,0.000229,7]
[374400998,1753288248365,-160.0,0.000229,7]
[374401000,1753288248375,-3052.63317897,0.00022929,2]
[374401002,1753288248384,-151.0,0.00022929,7]
[374401004,1753288248394,-151.0,0.00022929,7]
[374401006,1753288248404,-151.0,0.00022929,7]
[374401008,1753288248413,-296.089252,0.00022929,7]
[374401010,1753288248423,-296.089252,0.00022929,7]
[374401012,1753288248434,-151.0,0.00022929,7]
[374401014,1753288248443,-173.346304,0.00022929,7]
[374401016,1753288248453,-151.0,0.00022929,7]
[374401018,1753288248463,-151.0,0.00022929,7]
[374401020,1753288248472,-151.0,0.00022929,7]
[374401022,1753288248481,-151.0,0.00022929,7]
[374401024,1753288248491,-238.963048,0.00022929,7]
[374401026,1753288248500,-151.0,0.00022929,2]
[374401028,1753288248514,-238.963048,0.00022929,7]
[374401030,1753288248524,-151.0,0.00022929,2]
[374401032,1753288248533,-159.186887,0.00022929,7]
[374401034,1753288248542,-159.186887,0.00022929,7]
[374401036,1753288248552,-151.0,0.00022929,7]
[374401038,1753288248562,-151.0,0.00022929,7]
[374401040,1753288248571,-372.691336,0.00022929,7]
[374401042,1753288248580,-372.691336,0.00022929,7]
[374401044,1753288248591,-151.0,0.00022929,7]
[374401045,1753288248601,-426.607169,0.00022929,7]
[374401047,1753288248611,-426.607169,0.00022929,7]
[374401050,1753288248622,-2937.186692,0.00022929,7]
[374401051,1753288248631,-2937.186692,0.00022929,7]
[374401053,1753288248641,-383.736464,0.00022929,7]
[374401055,1753288248651,-383.736464,0.00022929,7]
[374401057,1753288248661,-197.569474,0.00022929,7]
[374401059,1753288248670,-197.569474,0.00022929,7]
[374401061,1753288248682,-164.459534,0.00022929,7]
[374401063,1753288248691,-164.459534,0.00022929,7]
[374401065,1753288248701,-151.0,0.00022929,7]
[374401067,1753288248711,-151.0,0.00022929,7]
[374401069,1753288248720,-1148.130776,0.00022929,7]
[374401071,1753288248730,-1148.130776,0.00022929,7]
[374401073,1753288248739,-185.850257,0.00022929,7]
[374401074,1753288248748,-185.850257,0.00022929,7]
[374401075,1753288248757,-1769.607605,0.00022929,7]
[374401076,1753288248767,-1769.607605,0.00022929,7]
[374401077,1753288248776,-268087.87468817,0.00022929,2]
[374401078,1753288248785,-686.74141711,0.00022949,2]
[374401079,1753288248795,-632.66,0.0002296,7]
[374401081,1753288248805,-5000.0,0.00022972,3]
[374401083,1753288248815,-160.0,0.00022972,3]
[374401085,1753288248824,-500.0,0.00022973,2]
[374401087,1753288248834,-308.34046914,0.00022973,2]
[374401089,1753288248843,-500.0,0.00022973,2]
[374401091,1753288248852,-500.0,0.00022973,2]
[374401093,1753288248863,-495.16783004,0.00022977,2]
[374401095,1753288248872,-1000.0,0.00022977,2]
[374401097,1753288248883,-500.0,0.00022977,2]
[374401099,1753288248892,-3021.27119451,0.0002298,2]
[374401101,1753288248901,-476.696448,0.0002298,3]
[374401103,1753288248911,-349.0,0.00022984,2]
[374401105,1753288248921,-39347.9062093,0.00022991,2]
[374401107,1753288248934,-9810.06450645,0.00023,2]
[374401109,1753288248943,-30733.72688157,0.00023,4]
[374401111,1753288248953,-53012.00502597,0.00023,2]
[374401113,1753288248962,-215.84326551,0.00023,3]
[374401115,1753288248971,-160.0,0.00023,3]
[374401117,1753288248981,-160.0,0.00023,2]
[374401119,1753288248990,-526.15909479,0.00023,3]
[374401121,1753288248999,-160.0,0.00023,3]
[374401123,1753288249008,-160.0,0.00023,3]
[374401125,1753288249018,-200.0,0.00023,2]
[374401127,1753288249027,-231.11583447,0.00023,3]
[374401129,1753288249036,-690.71,0.00023012,2]
[374401131,1753288249045,-862.25,0.00023012,2]
[374401132,1753288249054,-696.5,0.00023012,2]
[374401135,1753288249064,-151.0,0.00023013,7]
[374401136,1753288249072,-151.0,0.00023013,7]
[374401138,1753288249082,-151.0,0.00023013,7]
[374401140,1753288249092,-151.0,0.00023013,7]
[374401142,1753288249101,-151.0,0.00023013,7]
[374401144,1753288249111,-151.0,0.00023013,7]
[374401147,1753288249121,-151.0,0.00023013,7]
[374401149,1753288249130,-460.0,0.00023013,2]
[374401150,1753288249140,-460.0,0.00023013,2]
[374401153,1753288249150,-985.12,0.00023013,2]
[374401155,1753288249159,-969.61,0.00023013,2]
[374401157,1753288249169,-460.0,0.00023013,2]
[374401159,1753288249180,-679.58,0.00023013,2]
[374401161,1753288249189,-546.07,0.00023013,2]
[374401163,1753288249199,-758.35,0.00023013,2]
[374401164,1753288249209,-557.76,0.00023013,2]
[374401167,1753288249219,-460.0,0.00023013,2]
[374401169,1753288249229,-1096.99,0.00023013,2]
[374401171,1753288249239,-4434.18,0.00023013,2]
[374401173,1753288249248,-3588.5,0.00023013,2]
[374401175,1753288249257,-1211.42,0.00023013,2]
[374401177,1753288249267,-167.0,0.00023014,7]
[374401178,1753288249276,-575.0,0.00023014,2]
[374401180,1753288249285,-500.0,0.00023014,2]
[374401182,1753288249295,-291.361643,0.00023037,3]
[374401184,1753288249304,-291.361643,0.00023037,3]
[374401186,1753288249314,-1211.0,0.00023056,2]
[374401188,1753288249323,-349.0,0.00023057,2]
[374401190,1753288249334,-632.66,0.0002306,5]
[374401192,1753288249344,-1077.47,0.00023088,2]
[374401194,1753288249353,-151.0,0.00023147,7]
[374401196,1753288249362,-151.0,0.00023147,7]
[374401198,1753288249372,-632.66,0.0002316,4]
[374401200,1753288249382,-151.0,0.00023169,7]
[374401202,1753288249392,-151.0,0.00023169,7]
[374401204,1753288249401,-172.8828,0.00023169,7]
[374401206,1753288249411,-172.8828,0.00023169,7]
[374401209,1753288249420,-349.0,0.00023175,2]
[374401210,1753288249432,-4250.0,0.0002319,2]
[374401213,1753288249442,-349.0,0.00023223,2]
[374401215,1753288249451,-160.31443999,0.00023237,2]
[374401217,1753288249461,-25000.0,0.00023238,2]
[374401219,1753288249471,-632.66,0.0002326,6]
[374401220,1753288249480,-1211.0,0.00023266,2]
[374401222,1753288249489,-349.0,0.00023275,2]
[374401224,1753288249499,-151.0,0.00023286,7]
[374401226,1753288249509,-151.0,0.00023286,7]
[374401228,1753288249521,-690.71,0.00023286,2]
[374401230,1753288249529,-862.25,0.00023286,2]
[374401232,1753288249539,-696.5,0.00023286,2]
[374401234,1753288249548,-151.0,0.00023287,7]
[374401236,1753288249559,-170.341832,0.00023287,7]
[374401238,1753288249568,-170.341832,0.00023287,7]
[374401240,1753288249578,-151.0,0.00023287,7]
[374401242,1753288249587,-151.0,0.00023287,7]
[374401244,1753288249597,-151.0,0.00023287,7]
[374401246,1753288249607,-151.0,0.00023287,7]
[374401248,1753288249616,-151.0,0.00023287,7]
[374401250,1753288249625,-151.0,0.00023287,7]
[374401252,1753288249635,-296.089252,0.00023287,7]
[374401254,1753288249644,-296.089252,0.00023287,7]
[374401256,1753288249653,-151.0,0.00023287,7]
[374401258,1753288249663,-151.0,0.00023287,7]
[374401260,1753288249671,-151.0,0.00023287,7]
[374401262,1753288249682,-151.0,0.00023287,7]
[374401264,1753288249691,-151.0,0.00023287,7]
[374401266,1753288249700,-151.0,0.00023287,7]
[374401268,1753288249710,-151.0,0.00023287,7]
[374401269,1753288249719,-238.963048,0.00023287,7]
[374401271,1753288249729,-151.0,0.00023287,2]
[374401274,1753288249738,-238.963048,0.00023287,7]
[374401276,1753288249748,-151.0,0.00023287,2]
[374401277,1753288249757,-159.186887,0.00023287,7]
[374401279,1753288249768,-159.186887,0.00023287,7]
[374401281,1753288249778,-151.0,0.00023287,7]
[374401284,1753288249788,-151.0,0.00023287,7]
[374401286,1753288249798,-372.691336,0.00023287,7]
[374401287,1753288249808,-372.691336,0.00023287,7]
[374401289,1753288249817,-151.0,0.00023287,7]
[374401292,1753288249827,-151.0,0.00023287,7]
[374401294,1753288249836,-151.0,0.00023287,7]
[374401295,1753288249846,-151.0,0.00023287,7]
[374401297,1753288249855,-426.607169,0.00023287,7]
[374401299,1753288249865,-426.607169,0.00023287,7]
[374401301,1753288249876,-565.466147,0.00023287,7]
[374401303,1753288249885,-565.466147,0.00023287,7]
[374401305,1753288249894,-151.0,0.00023287,7]
[374401308,1753288249904,-151.0,0.00023287,7]
[374401310,1753288249914,-396.859737,0.00023287,7]
[374401312,1753288249924,-396.859737,0.00023287,7]
[374401314,1753288249939,-1173.891373,0.00023287,7]
[374401315,1753288249948,-1173.891373,0.00023287,7]
[374401317,1753288249957,-2937.186692,0.00023287,7]
[374401320,1753288249967,-2937.186692,0.00023287,7]
[374401322,1753288249976,-383.736464,0.00023287,7]
[374401323,1753288249986,-383.736464,0.00023287,7]
[374401325,1753288249995,-261.048043,0.00023287,7]
[374401327,1753288250004,-261.048043,0.00023287,7]
[374401329,1753288250014,-151.0,0.00023287,7]
[374401331,1753288250023,-151.0,0.00023287,7]
[374401333,1753288250032,-5346.940302,0.00023287,7]
[374401335,1753288250042,-197.569474,0.00023287,7]
[374401337,1753288250051,-5346.940302,0.00023287,7]
[374401339,1753288250060,-197.569474,0.00023287,7]
[374401341,1753288250070,-164.459534,0.00023287,7]
[374401344,1753288250080,-164.459534,0.00023287,7]
[374401346,1753288250090,-1148.130776,0.00023287,7]
[374401347,1753288250099,-1148.130776,0.00023287,7]
[374401349,1753288250108,-185.850257,0.00023287,7]
[374401351,1753288250118,-185.850257,0.00023287,7]
[374401353,1753288250127,-1769.607605,0.00023287,7]
[374401355,1753288250136,-1769.607605,0.00023287,7]
[374401357,1753288250145,-460.0,0.00023287,2]
[374401359,1753288250154,-460.0,0.00023287,2]
[374401361,1753288250164,-985.12,0.00023287,2]
[374401363,1753288250173,-969.61,0.00023287,2]
[374401365,1753288250185,-342.75469546,0.00023287,2]
[374401368,1753288250197,-679.58,0.00023287,2]
[374401370,1753288250206,-546.07,0.00023287,2]
[374401371,1753288250215,-758.35,0.00023287,2]
[374401374,1753288250225,-557.76,0.00023287,2]
[374401376,1753288250235,-460.0,0.00023287,2]
[374401389,1753288250358,-1096.99,0.00023287,2]
[374401391,1753288250368,-4434.18,0.00023287,2]
[374401393,1753288250377,-3588.5,0.00023287,2]
[374401395,1753288250386,-1211.42,0.00023287,2]
[374401397,1753288250395,-575.0,0.00023288,2]
[374401399,1753288250405,-500.0,0.00023288,2]
[374401401,1753288250414,-151.0,0.000233,7]
[374401403,1753288250424,-3410.41,0.000233,7]
[374401405,1753288250436,-2069.97,0.000233,2]
[374401407,1753288250445,-349.0,0.00023312,2]
[374401409,1753288250454,-660.0,0.0002334,2]
[374401411,1753288250463,-156.366059,0.00023354,10]
[374401413,1753288250472,-632.66,0.0002336,4]
[374401415,1753288250482,-151.0,0.00023399,7]
[374401417,1753288250491,-230.585297,0.00023399,7]
[374401419,1753288250499,-230.585297,0.00023399,7]
[374401421,1753288250513,-151.0,0.000234,7]
[374401423,1753288250523,-151.0,0.000234,7]
[374401425,1753288250533,-151.0,0.000234,7]
[374401427,1753288250542,-151.0,0.000234,7]
[374401429,1753288250551,-151.0,0.000234,7]
[374401431,1753288250560,-208.944323,0.000234,7]
[374401433,1753288250569,-151.0,0.000234,7]
[374401435,1753288250580,-405.843019,0.000234,7]
[374401437,1753288250590,-405.843019,0.000234,7]
[374401439,1753288250600,-1938.12,0.000234,7]
[374401441,1753288250610,-349.0,0.00023415,2]
[374401442,1753288250619,-500.0,0.00023421,2]
[374401445,1753288250629,-1000.0,0.00023421,2]
[374401447,1753288250639,-1000.0,0.00023421,2]
[374401449,1753288250649,-1000.0,0.00023421,2]
[374401451,1753288250658,-623.3398421,0.00023421,2]
[374401453,1753288250667,-1000.0,0.00023421,2]
[374401455,1753288250678,-1000.0,0.00023421,2]
[374401456,1753288250690,-299.77258459,0.00023421,2]
[374401459,1753288250700,-632.55064825,0.00023422,2]
[374401460,1753288250709,-632.66,0.0002346,3]
[374401462,1753288250719,-153.0,0.00023479,2]
[374401464,1753288250728,-153.0,0.00023479,2]
[374401467,1753288250738,-153.0,0.00023479,2]
[374401468,1753288250747,-153.0,0.00023479,2]
[374401470,1753288250756,-153.0,0.00023479,2]
[374401472,1753288250766,-153.0,0.00023479,2]
[374401474,1753288250775,-153.0,0.00023479,2]
[374401476,1753288250784,-153.0,0.00023479,2]
[374401478,1753288250794,-153.0,0.00023479,2]
[374401480,1753288250803,-153.0,0.00023479,2]
[374401482,1753288250813,-153.0,0.00023479,2]
[374401484,1753288250822,-306.0,0.00023479,2]
[374401486,1753288250831,-153.0,0.00023479,2]
[374401488,1753288250841,-160.0,0.000235,3]
[374401490,1753288250851,-840.06856235,0.000235,3]
[374401492,1753288250860,-160.0,0.000235,3]
[374401494,1753288250870,-12622.36869388,0.000235,3]
[374401496,1753288250879,-987.26539813,0.00023521,2]
[374401498,1753288250889,-1000.0,0.00023521,2]
[374401500,1753288250898,-686.74141711,0.00023533,2]
[374401502,1753288250907,-632.66,0.0002356,4]
[374401504,1753288250917,-690.71,0.0002356,2]
[374401506,1753288250926,-862.25,0.0002356,2]
[374401508,1753288250938,-696.5,0.0002356,2]
[374401510,1753288250947,-2157.0,0.00023561,2]
[374401512,1753288250956,-969.0,0.00023561,2]
[374401514,1753288250965,-407.0,0.00023561,2]
[374401516,1753288250975,-420.288,0.00023561,2]
[374401518,1753288250984,-648.0,0.00023561,2]
[374401520,1753288250994,-460.0,0.00023561,2]
[374401522,1753288251003,-460.0,0.00023561,2]
[374401524,1753288251013,-985.12,0.00023561,2]
[374401526,1753288251023,-969.61,0.00023561,2]
[374401528,1753288251032,-200.0,0.00023561,2]
[374401530,1753288251041,-200.0,0.00023561,2]
[374401532,1753288251050,-200.0,0.00023561,2]
[374401534,1753288251059,-183.46287209,0.00023561,2]
[374401536,1753288251068,-679.58,0.00023561,2]
[374401538,1753288251078,-546.07,0.00023561,2]
[374401540,1753288251087,-758.35,0.00023561,2]
[374401542,1753288251096,-557.76,0.00023561,2]
[374401544,1753288251106,-460.0,0.00023561,2]
[374401546,1753288251116,-1096.99,0.00023561,2]
[374401548,1753288251125,-4434.18,0.00023561,2]
[374401550,1753288251135,-3588.5,0.00023561,2]
[374401552,1753288251144,-1211.42,0.00023561,2]
[374401554,1753288251154,-575.0,0.00023562,2]
[374401556,1753288251163,-500.0,0.00023562,2]
[374401557,1753288251173,-800.0,0.0002359,2]
[374401560,1753288251184,-1303.0,0.00023594,2]
[374401561,1753288251194,-151.0,0.000236,8]
[374401563,1753288251204,-400.0,0.00023616,3]
[374401565,1753288251215,-153.413491,0.00023616,7]
[374401567,1753288251225,-153.413491,0.00023616,7]
[374401569,1753288251234,-160.0,0.00023617,3]
[374401571,1753288251243,-312.568226,0.00023633,3]
[374401573,1753288251253,-154.0,0.00023633,3]
[374401575,1753288251262,-154.0,0.00023633,3]
[374401577,1753288251272,-211.66011307,0.00023633,3]
[374401579,1753288251283,-324.0,0.00023633,3]
[374401581,1753288251292,-324.0,0.00023633,3]
[374401583,1753288251301,-189.9008288,0.00023633,3]
[374401585,1753288251311,-291.361643,0.00023648,3]
[374401587,1753288251321,-291.361643,0.00023648,3]
[374401589,1753288251330,-632.66,0.0002366,4]
[374401591,1753288251340,-154.0,0.0002368,3]
[374401593,1753288251349,-1262.28255145,0.0002368,3]
[374401595,1753288251358,-150.494,0.0002369,2]
[374401597,1753288251368,-224.39,0.0002369,2]
[374401599,1753288251377,-250.0,0.0002369,2]
[374401601,1753288251386,-216.862,0.0002369,2]
[374401603,1753288251395,-150.0,0.0002369,2]
[374401605,1753288251404,-260.084,0.0002369,2]
[374401607,1753288251414,-217.664,0.0002369,2]
[374401609,1753288251423,-172.8828,0.00023695,7]
[374401611,1753288251434,-172.8828,0.00023695,7]
[374401613,1753288251443,-151.0,0.00023695,7]
[374401615,1753288251452,-152.467607,0.000237,7]
[374401617,1753288251461,-534.589728,0.000237,7]
[374401619,1753288251471,-534.589728,0.000237,7]
[374401621,1753288251480,-4386.39108129,0.00023735,2]
[374401623,1753288251489,-151.0,0.00023751,7]
[374401625,1753288251500,-632.66,0.0002376,4]
[374401627,1753288251509,-151.0,0.0002376,7]
[374401629,1753288251521,-151.0,0.0002376,7]
[374401631,1753288251531,-151.0,0.00023786,7]
[374401633,1753288251540,-151.0,0.00023786,7]
[374401635,1753288251550,-151.254061,0.00023786,7]
[374401637,1753288251560,-800.0,0.00023792,2]
[374401639,1753288251571,-151.0,0.00023805,7]
[374401641,1753288251580,-151.0,0.00023806,7]
[374401643,1753288251590,-151.0,0.00023806,7]
[374401644,1753288251601,-153.0,0.00023808,2]
[374401645,1753288251610,-291.361643,0.00023831,10]
[374401647,1753288251619,-291.361643,0.00023831,10]
[374401649,1753288251628,-690.71,0.00023834,2]
[374401651,1753288251637,-862.25,0.00023834,2]
[374401653,1753288251646,-151.0,0.00023835,7]
[374401655,1753288251656,-151.0,0.00023835,7]
[374401657,1753288251665,-151.0,0.00023835,7]
[374401659,1753288251674,-151.0,0.00023835,7]
[374401661,1753288251687,-460.0,0.00023835,2]
[374401663,1753288251696,-161.92566,0.00023835,7]
[374401665,1753288251706,-161.92566,0.00023835,7]
[374401667,1753288251715,-460.0,0.00023835,2]
[374401669,1753288251724,-985.12,0.00023835,2]
[374401671,1753288251734,-969.61,0.00023835,2]
[374401673,1753288251742,-679.58,0.00023835,2]
[374401675,1753288251751,-546.07,0.00023835,2]
[374401677,1753288251760,-758.35,0.00023835,2]
[374401679,1753288251769,-557.76,0.00023835,2]
[374401681,1753288251779,-460.0,0.00023835,2]
[374401683,1753288251788,-1096.99,0.00023835,2]
[374401685,1753288251797,-4434.18,0.00023835,2]
[374401687,1753288251807,-3588.5,0.00023835,2]
[374401689,1753288251817,-1211.42,0.00023835,2]
[374401691,1753288251827,-575.0,0.00023836,2]
[374401693,1753288251835,-500.0,0.00023836,2]
[374401695,1753288251845,-632.66,0.0002386,4]
[374401697,1753288251855,-760.0,0.00023888,2]
[374401699,1753288251864,-4386.39108122,0.00023896,2]
[374401701,1753288251876,-151.0,0.000239,10]
[374401703,1753288251885,-291.361643,0.000239,7]
[374401705,1753288251895,-291.361643,0.000239,7]
[374401707,1753288251904,-151.0,0.00023933,7]
[374401709,1753288251912,-211.566,0.00023933,7]
[374401711,1753288251918,-152.11147,0.00023947,7]
[374401713,1753288251927,-632.66,0.0002396,4]
[374401715,1753288251938,-1626.88007973,0.00023968,2]
[374401717,1753288251947,-1500.0,0.00023968,2]
[374401719,1753288251956,-1000.0,0.00023968,2]
[374401721,1753288251966,-1500.0,0.00023968,2]
[374401723,1753288251976,-150.0,0.00023973,2]
[374401725,1753288251985,-500.0,0.00023973,2]
[374401727,1753288251994,-800.0,0.00023993,2]
[374401729,1753288252003,-170.341832,0.00023996,7]
[374401731,1753288252012,-170.341832,0.00023996,7]
[374401733,1753288252022,-504.73,0.00024,3]
[374401735,1753288252031,-500.0,0.00024,2]
[374401737,1753288252040,-2000.0,0.00024,5]
[374401738,1753288252050,-2000.0,0.00024,5]
[374401740,1753288252059,-500.0,0.00024,4]
[374401742,1753288252068,-500.0,0.00024,5]
[374401744,1753288252078,-500.0,0.00024,3]
[374401746,1753288252087,-160.0,0.00024,3]
[374401748,1753288252097,-160.0,0.00024,7]
[374401750,1753288252106,-160.0,0.00024,3]
[374401752,1753288252115,-160.0,0.00024,7]
[374401754,1753288252125,-39436.15,0.00024,2]
[374401756,1753288252134,-151.0,0.00024,7]
[374401758,1753288252143,-257.26374,0.00024,7]
[374401760,1753288252152,-238.963048,0.00024,7]
[374401762,1753288252162,-151.0,0.00024,2]
[374401764,1753288252171,-238.963048,0.00024,7]
[374401766,1753288252181,-151.0,0.00024,2]
[374401767,1753288252191,-151.0,0.00024,7]
[374401769,1753288252200,-372.691336,0.00024,7]
[374401771,1753288252210,-372.691336,0.00024,7]
[374401773,1753288252220,-151.0,0.00024,7]
[374401775,1753288252229,-565.466147,0.00024,7]
[374401777,1753288252238,-565.466147,0.00024,7]
[374401779,1753288252247,-1173.891373,0.00024,7]
[374401781,1753288252258,-1173.891373,0.00024,7]
[374401783,1753288252269,-2937.186692,0.00024,7]
[374401785,1753288252279,-2937.186692,0.00024,7]
[374401787,1753288252288,-383.736464,0.00024,7]
[374401789,1753288252297,-383.736464,0.00024,7]
[374401791,1753288252308,-151.0,0.00024,7]
[374401793,1753288252318,-151.0,0.00024,7]
[374401795,1753288252327,-197.569474,0.00024,7]
[374401797,1753288252336,-197.569474,0.00024,7]
[374401799,1753288252345,-840.06856235,0.00024,7]
[374401801,1753288252354,-840.06856235,0.00024,10]
[374401803,1753288252363,-160.0,0.00024,7]
[374401805,1753288252371,-164.459534,0.00024,7]
[374401807,1753288252380,-164.459534,0.00024,7]
[374401809,1753288252390,-1148.130776,0.00024,7]
[374401811,1753288252399,-1148.130776,0.00024,7]
[374401813,1753288252408,-12176.83,0.00024,7]
[374401815,1753288252418,-185.850257,0.00024,7]
[374401817,1753288252427,-185.850257,0.00024,7]
[374401819,1753288252440,-1769.607605,0.00024,7]
[374401821,1753288252449,-1769.607605,0.00024,7]
[374401823,1753288252459,-151.0,0.00024,7]
[374401825,1753288252468,-151.0,0.00024,7]
[374401827,1753288252477,-215.84326551,0.00024,7]
[374401828,1753288252487,-160.0,0.00024,7]
[374401830,1753288252497,-526.15909479,0.00024,7]
[374401832,1753288252507,-160.0,0.00024,7]
[374401834,1753288252521,-160.0,0.00024,7]
[374401836,1753288252530,-642.0,0.00024,2]
[374401838,1753288252539,-231.11583447,0.00024,7]
[374401840,1753288252548,-1292.96,0.00024012,2]
[374401842,1753288252558,-4386.39108122,0.00024058,2]
[374401844,1753288252568,-223.0315306,0.00024059,2]
[374401846,1753288252577,-632.66,0.0002406,3]
[374401848,1753288252586,-151.0,0.0002406,7]
[374401849,1753288252598,-151.217932,0.0002406,7]
[374401851,1753288252608,-151.0,0.0002406,7]
[374401853,1753288252618,-151.0,0.0002406,7]
[374401855,1753288252628,-151.0,0.0002406,7]
[374401857,1753288252637,-243.298257,0.0002406,7]
[374401859,1753288252646,-396.859737,0.0002406,7]
[374401861,1753288252655,-396.859737,0.0002406,7]
[374401863,1753288252664,-261.048043,0.0002406,7]